Cogmind - Beta 10.1 @@@ ROGUE MODE // 2020.09.29 @ 14:13:35 Player: HOTSOUP Result: Destroyed by as-85953 with Assembled F-torch Performance ------------- Evolutions (1) 500 Regions Visited (3) 600 Robots Destroyed (1) 5 Value Destroyed (16) 16 Prototype IDs (0) 0 Alien Tech Used (0) 0 Bonus (0) 0 TOTAL SCORE: 1121 Bonus ------- None Cogmind --------- Core Integrity 0/400 Matter 296/300 Energy 100/100 System Corruption 1% Temperature Cool (32) Movement Core (50) Location -9/Mines Parts ------- > --- POWER (1) -------- (None) > --- PROPULSION (2) --- (None) > --- UTILITY (4) ------ Advanced Targeting Computer Advanced Targeting Computer > --- WEAPON (2) ------- (None) > --- INVENTORY (4) ---- Medium Laser Small Laser Datajack Mining Laser Peak State ------------ > --- POWER ------------ (None) > --- PROPULSION ------- Flight Unit Flight Unit > --- UTILITY ---------- Small Storage Unit Advanced Targeting Computer Advanced Targeting Computer Hacking Suite > --- WEAPON ----------- (None) > --- INVENTORY -------- Medium Laser Small Laser Datajack [Rating: 12] Favorites ----------- Power None Propulsion Flight Unit Flight Unit Flight Unit Utility Small Storage Unit Storage Small Storage Unit Processor Advanced Targeting Computer Hackware Hacking Suite Weapon Medium Laser Energy Gun Medium Laser Special Weapon Mining Laser Build | -11 -10 -9 -9 ------- Run | Scr Mat Mat Min Slots Evolved 2 | . . 2 . Power . | . . . . Propulsion . | . . . . Utility 2 | . . 2 . Weapon . | . . . . Parts Attached 9 | 1 4 4 . Power . | . . . . Engine . | . . . . Core . | . . . . Reactor . | . . . . Propulsion 2 | . 1 1 . Treads . | . . . . Leg . | . . . . Wheel . | . . . . Hover . | . . . . Flight 2 | . 1 1 . Utility 4 | 1 1 2 . Device . | . . . . Storage 1 | 1 . . . Processor 2 | . . 2 . Hackware 1 | . 1 . . Protection . | . . . . Artifact . | . . . . Weapon 3 | . 2 1 . Energy Gun 2 | . 2 . . Energy Cannon . | . . . . Ballistic Gun . | . . . . Ballistic Cannon . | . . . . Launcher . | . . . . Special Weapon 1 | . . 1 . Impact Weapon . | . . . . Slashing Weapon . | . . . . Piercing Weapon . | . . . . Special Melee Weapon . | . . . . Unidentified Prototypes . | . . . . Parts Lost 3 | . . 1 2 Power . | . . . . Propulsion 2 | . . 1 1 Utility 1 | . . . 1 Weapon . | . . . . Highest Loss Streak 2 | . . 1 2 Average Slot Usage (%) 35 | . 21 43 49 Flight 8 | . 5 12 9 Storage 12 | . 14 11 9 Processor 7 | . . 9 22 Hackware 7 | . 2 11 9 Naked Turns . | . . . . Heaviest Build 5 | 4 4 5 4 Greatest Support 8 | 3 4 8 4 Greatest Overweight (x) 1 | 1 1 1 . Average Overweight (x) . | . . . . Largest Inventory Capacity 6 | 6 6 6 6 Average Capacity 5 | 5 6 6 5 Most Carried 4 | 2 4 3 4 Average Carried 2 | 1 3 3 4 Final Capacity 6 | 6 6 6 4 Final Carried 4 | 2 3 3 4 Class Distribution -------------------- 100% | Mutant Dominant Class ---------------- Mutant | -10/Materials Mutant | -9/Materials Mutant | -9/Mines Resources | -11 -10 -9 -9 ----------- Run | Scr Mat Mat Min Matter Collected 268 | 210 14 16 28 Remotely . | . . . . Salvage Created 14 | . 14 . . Parts 4 | . 4 . . Haulers Intercepted . | . . . . Recyclers Shooed . | . . . . Parts Field Recycled . | . . . . Retrieved Matter . | . . . . Parts Self-Destructed . | . . . . Prevented . | . . . . Kills | -11 -10 -9 -9 ------- Run | Scr Mat Mat Min Combat Hostiles Destroyed . | . . . . Classes Destroyed 1 | . 1 . . Operator 1 | . 1 . . Best Kill Streak 1 | . 1 . . Combat Bots Only . | . . . . Max Kills in Single Turn 1 | . 1 . . Gunslinging . | . . . . Exploded . | . . . . Melee . | . . . . Uniques/NPCs Destroyed . | . . . . Combat | -11 -10 -9 -9 -------- Run | Scr Mat Mat Min Damage Taken 493 | . . 254 239 Core 405 | . . 213 192 Absorbed by Shields . | . . . . Core Remaining (%) 100 | 100 100 . . Volleys Fired 2 | . 2 . . Largest 1 | . 1 . . Hottest 50 | . 50 . . Shots Fired 2 | . 2 . . Gun 2 | . 2 . . Cannon . | . . . . Launcher . | . . . . Special . | . . . . Kinetic . | . . . . Thermal 2 | . 2 . . Explosive . | . . . . Electromagnetic . | . . . . Robot Hit Streak 2 | . 2 . . Robot Miss Streak . | . . . . Penetration Max . | . . . . Secondary Targets . | . . . . Shots Hit Robots 2 | . 2 . . Core Hits 3 | . 2 . 1 Critical Hits . | . . . . Critical Kills . | . . . . Critical Parts Destroyed . | . . . . Melee Attacks . | . . . . Impact . | . . . . Slashing . | . . . . Piercing . | . . . . Sneak Attacks . | . . . . Combat Hostiles . | . . . . Follow-up Attacks . | . . . . Damage Inflicted 30 | . 24 . 6 Guns 24 | . 24 . . Cannons . | . . . . Explosions . | . . . . Melee . | . . . . Ramming 6 | . . . 6 Kinetic . | . . . . Thermal 24 | . 24 . . Explosive . | . . . . Electromagnetic . | . . . . Impact . | . . . . Slashing . | . . . . Piercing . | . . . . Highest Corruption 1 | . . . 1 Average Corruption 1 | . . . 1 Corruption Purged . | . . . . Overload Shots . | . . . . Overflow Damage . | . . . . Projectiles . | . . . . Explosions . | . . . . Melee . | . . . . Knockbacks . | . . . . Impact . | . . . . Kinetic . | . . . . Secondary . | . . . . Self-Inflicted Damage 3 | . . . 3 Shots . | . . . . Rammed 1 | . . . 1 Targets Rammed 1 | . . . 1 Kicked . | . . . . Crushed . | . . . . Highest Temperature 12 | . 2 . 12 Average Temperature 3 | . 1 . 12 Received Heat Transfer 156 | . . 96 60 Siege Activations . | . . . . Robots Corrupted . | . . . . Combat Hostiles . | . . . . Parts Fried . | . . . . Impact Corruptions . | . . . . Robots Melted . | . . . . Combat Hostiles . | . . . . Parts Melted . | . . . . Heat Transferred 74 | . 74 . . Parts Sabotaged . | . . . . Parts Stolen . | . . . . Parts Stripped . | . . . . Power Chain Reactions . | . . . . Missiles Intercepted . | . . . . Alert | -11 -10 -9 -9 ------- Run | Scr Mat Mat Min Peak Influence 59 | . 35 59 18 Initial 18 | . . 14 18 Average 26 | . 17 43 16 Maximum Alert Level . | . . . . Low Security (%) 100 | 100 100 100 100 Level 1 . | . . . . Level 2 . | . . . . Level 3 . | . . . . Level 4 . | . . . . Level 5 . | . . . . High Security . | . . . . Max Security . | . . . . Squads Dispatched 5 | . 2 3 . Investigation 2 | . 1 1 . Extermination . | . . . . Reinforcement 3 | . 1 2 . Assault . | . . . . Garrison . | . . . . Intercept . | . . . . Construction Impeded . | . . . . Haulers Reinforced . | . . . . Stealth | -11 -10 -9 -9 --------- Run | Scr Mat Mat Min Distress Signals 1 | . . 1 . Communications Jammed . | . . . . Distress Signals . | . . . . Times Spotted 34 | . 3 17 14 Peak Tracking Total 14 | . 2 9 14 Tactical Retreats 5 | . . 5 . Traps | -11 -10 -9 -9 ------- Run | Scr Mat Mat Min Traps Triggered 1 | . . 1 . Indirectly . | . . . . Trap Hack Attempts . | . . . . Triggered . | . . . . Disarmed . | . . . . Reprogrammed . | . . . . Reused . | . . . . Traps Extracted . | . . . . Installed . | . . . . Triggered . | . . . . Machines | -11 -10 -9 -9 ---------- Run | Scr Mat Mat Min Machines Disabled . | . . . . Max in Single Turn . | . . . . Machines Sabotaged . | . . . . Garrisons Compromised . | . . . . Overloaded Fab Kills . | . . . . Fab Network Shutdowns . | . . . . Hacking | -11 -10 -9 -9 --------- Run | Scr Mat Mat Min Machines Accessed 1 | . 1 . . Terminals 1 | . 1 . . Fabricators . | . . . . Repair Stations . | . . . . Recycling Units . | . . . . Scanalyzers . | . . . . Garrison Access . | . . . . Total Hacks 3 | . 3 . . Successful 1 | . 1 . . Failed 2 | . 2 . . Catastrophic . | . . . . Database Lockouts . | . . . . Manual 3 | . 3 . . Terminals 3 | . 3 . . Fabricators . | . . . . Repair Stations . | . . . . Recycling Units . | . . . . Scanalyzers . | . . . . Garrison Access . | . . . . Terminal Hacks 1 | . 1 . . Recall Reinforcements 1 | . 1 . . Fabricator Hacks . | . . . . Repair Station Hacks . | . . . . Recycling Unit Hacks . | . . . . Scanalyzer . | . . . . Garrison Access Hacks . | . . . . Unauthorized Hacks . | . . . . Terminals . | . . . . Fabricators . | . . . . Repair Stations . | . . . . Recycling Units . | . . . . Scanalyzers . | . . . . Garrison Access . | . . . . Data Cores Recovered . | . . . . Used . | . . . . Hacking Detections 1 | . 1 . . Full Trace Events 1 | . 1 . . Feedback Events . | . . . . Feedback Blocked . | . . . . Robot Schematics Acquired . | . . . . Robots Built . | . . . . Matter . | . . . . Time . | . . . . Total Robot Build Rating . | . . . . Part Schematics Acquired . | . . . . Parts Built . | . . . . Matter . | . . . . Time . | . . . . Total Part Build Rating . | . . . . Parts Repaired . | . . . . Time . | . . . . Parts Recycled . | . . . . Recycled Matter . | . . . . Retrieved Matter . | . . . . Retrieved Components . | . . . . Parts Scanalyzed . | . . . . Part Schematics Acquired . | . . . . Parts Damaged . | . . . . Bothacking | -11 -10 -9 -9 ------------ Run | Scr Mat Mat Min Used RIF Installer . | . . . . Robots Hacked . | . . . . Non-combat . | . . . . Combat . | . . . . Robot Hacks Applied . | . . . . Relay Couplers Released . | . . . . Robots Rewired . | . . . . Allies Hacked . | . . . . Hacks Repelled . | . . . . Allies | -11 -10 -9 -9 -------- Run | Scr Mat Mat Min Total Allies . | . . . . Largest Group . | . . . . Highest-Rated Group . | . . . . Highest-Rated Ally . | . . . . Total Orders . | . . . . Ally Attacks . | . . . . Total Damage . | . . . . Kills . | . . . . Allies Corrupted . | . . . . Allies Melted . | . . . . Intel | -11 -10 -9 -9 ------- Run | Scr Mat Mat Min Robot Analysis Total . | . . . . Derelict Logs Recovered . | . . . . Drone Launches . | . . . . Drone Recoveries . | . . . . Exploration | -11 -10 -9 -9 ------------- Run | Scr Mat Mat Min Turns Passed 469 | 39 188 189 53 Spaces Moved 763 | 42 258 354 109 Core 151 | 42 105 . 4 Treads . | . . . . Legs . | . . . . Wheels . | . . . . Hover . | . . . . Flight 612 | . 153 354 105 Fastest Speed 37 | 50 40 37 40 Average Speed 51 | 86 64 40 40 Slowest Speed 120 | 100 100 120 50 Overloaded Moves . | . . . . Propulsion Burnouts . | . . . . Robots Hopped 14 | . 5 7 2 Cave-ins Triggered . | . . . . Exploration Rate (%) 25 | 4 32 37 30 Regions Visited 3 Branch Regions 1 Pre-discovered Areas . | . . . . Known Exits Taken . | . . . . Unknown Exits Taken 3 | 1 1 1 . Scrap Searched 1 | . . . 1 Spaces Dug . | . . . . Terrain Destroyed . | . . . . Melee . | . . . . Projectile . | . . . . AOE . | . . . . Terrain Rammed . | . . . . Walls Destroyed . | . . . . Machines Disabled . | . . . . Actions | -11 -10 -9 -9 --------- Run | Scr Mat Mat Min Total 824 | 44 272 391 117 Wait 58 | . 10 41 7 Move 732 | 41 247 339 105 Hop 14 | . 5 7 2 Pick Up 4 | 2 2 . . Fast Attach 6 | 1 1 4 . Attach 3 | . 3 . . Detach 3 | . 2 . 1 Swap . | . . . . Drop 1 | . . . 1 Fire 2 | . 2 . . Melee . | . . . . Ram 1 | . . . 1 Kick . | . . . . Crush . | . . . . Escape Stasis . | . . . . Rewire . | . . . . Trap . | . . . . Miscellaneous . | . . . . Route ------- -11/Scrapyard -10/Materials -9/Materials -9/Mines History --------- Turn | Location | Event 3 | -11/Scrapyard | Discovered new exit (range 15) 40 | -11/Scrapyard | Entered Materials 134 | -10/Materials | Discovered new exit (range 8) 228 | -10/Materials | Entered another Materials area 228 | -9/Materials | Evolved 2 slots: Utility x2 310 | -9/Materials | Build established: Mutant 405 | -9/Materials | Discovered new exit (range 16) 415 | -9/Materials | Core integrity fell below 50% 417 | -9/Materials | Entered Mines 452 | -9/Mines | Assembled infested the area 470 | -9/Mines | Core integrity fell below 20% 470 | -9/Mines | Destroyed by as-85953 with Assembled F-torch Last Messages --------------- 00394_ Acquired 16 matter. 00405_ EXIT=FOUND 00409_ K-01 Serf collects debris. 00410_ Flight Unit destroyed. 00413_ Acquired Mining Laser. LOCATION=UNKNOWN GOAL=ESCAPE 00418_ K-01 Serf collects debris. 00418_ K-01 Serf cleans the Pulverizer. 00423_ Searching scrap... 00423_ Found Lgt. EM Pulse Cannon. 00423_ Found Arm. Wheel. 00423_ Found 28 Matter. 00424_ Acquired 28 matter. 00452_ ALERT: Infestation in the mines, dispatching Demolisher response squad. 00465_ Hacking Suite destroyed. 00465_ System corrupted by crushing effect (+1). 00467_ Flight Unit destroyed. 00467_ Dropped Sml. Storage Unit. 00470_ Slammed into as-82379. Map ----- +----------------------------------------------------+ | ?????????????????????????????????????????????????? | | ?????????????????????????????????????????????????? | | ?????????????????????????????????????????????????? | | ?????????????????????????????????????????????????? | | ?????????????????????????????????????????????????? | | ?????????????????????????????????????????????????? | | ?????????????????????????????????????????????????? | | ?????????????????????????????????????????????????? | | ?????????????????????????????????????????????????? | | ???????????????????????????#########?????????????? | | ???????????????????????????# #?????????????? | | ???????????????????????????# #?????????????? | | ???????????????????????????# """ #?????????????? | | ???????????????????????????# """ #?????????????? | | ?????????????????????#####?# """ #?????????????? | | ?????????????????????# #?# """ #?????????????? | | ?????????????????????# ### #?????????###?? | | ?????????????????????## ###### ###????????## ##? | | ??????????????????????# ##??# #??????????# #? | | ???????????????????#### ##?# ###????????# #? | | ??????????????????? ### aa#?# #???????## #? | | ???????????????????# #?## #?# #???????# ## | | ???????????????????# #??# aa #?## ######### # | | ???????????????????# #?## aa##??# = | | ???????????????????# ###aaa##???# ] | | ??????# ???????????# a @##????############### | | ??????# ######### aa a##??????????????????## | | ??????# """a#??????????????????## # | | ?????# """ #?????????########## # | | ????? " ######### """ #?????????# ## | | ????????????????## #####?????# ####### ##? | | ????????????????# ### ##????# #?????# #?? | | ????????????????# ##### ###### #?????## #? | | ???????????????## ##### [ # #??????## # | | ???????????????# ## #???????# # | | ???????????????# ## ####???????##### | | ???????????????# ## ## #??????????????? | | ???????????????## # ##??????????????? | | ????????????????## [ ##???????????????? | | ?????????????????####### ##???????????????? | | ???????????????????????## = ##??????????????? | | ????????????????????????## ! #??????????????? | | ?????????????????????????## #??????????????? | | ??????????????????????????## #??????????????? | | ??????????????????????????## #??????????????? | | ??????????????????????????# ! ##??????????????? | | ?????????????????????????# ]###???????????????? | | ?????????????????????????# ##?????????????????? | | ?????????????????????????## ##??????????????????? | | ??????????????????????????###????????????????????? | +----------------------------------------------------+ Best States ------------- Heat Dissipation 28 Energy Generation 5 Energy Capacity 100 Matter Stores 300 Matter Capacity 300 Sight Range 16 Terrain Scan Density 10 Evasion (%) 62 Targeting Accuracy 16 Offensive Hacking 10 Item Schematics ----------------- None Robot Schematics ------------------ None Fabricated ------------ Nothing Alien Tech Used ----------------- None Achievements -------------- None Challenges ------------ None Game ------ Seed CoolantThiefNetwork Manual? 0 Play Time 00:09:52 Cumulative 74.8 hours Start 2020.09.29 @ 14:05:16 End 2020.09.29 @ 14:13:35 Sessions 1 Manual Loads 0 Difficulty Rogue Special Mode None Game No. 95 Rogue 71 Adventurer 22 Explorer 2 Win Type - Total 1 Types 1/0/0/0/0/0/0/0/0 Lore% 43 Gallery% 47 Achievement% 39 Wizard Run 0 Options --------- ASCII 0 Keyboard 0 Movement Numpad Keybinds 0 Fullscreen 1 Font 14/SmallcapsGlow Map View 84x54 Tactical HUD 1 Map Filters NONE Filters NONE Steam 1 RUN: a9960333-19d4-4cae-a257-cd606fb73a43